Workbook

Sheet Assistente
A1: Desenvolvido por www.evandrogf.com.br | D1: Holerite Fácil. Versão 1.7
C3: =NomeEmpresa -> Empresa Fictícia LTDA | G3: Recibo de Pagamento de Salário | O3: DECLARO TER RECEBIDO A I MPOTÂNCIA LÍQUIDA DISCRIMINADA NESTE RECIBO
P4: ________________________________
C5: CNPJ: | D5: =CnpjFormatado -> 12.345.675/3342-11 | G5: =MesRef&"/"&AnoRef -> Março/2018 | Q5: ASSINATURA DO FUNCIONÁRIO
C7: Código | D7: Nome do Funcionário | G7: CBO | H7: Emp. | I7: Local | J7: Depto. | K7: Setor | L7: Seção | M7: Fl.
C8: =CodFuncionario -> 1 | D8: =IF(MAX(BaseFuncionarios!A:A)=0,"Nenhum funcionário cadastrado",IFERROR(VLOOKUP(C8,BaseFuncionarios!A:C,2,0),"Não encontrado")) -> João | G8: =IFERROR(VLOOKUP(C8,BaseFuncionarios!A:F,3,0)&" - "&VLOOKUP(C8,BaseFuncionarios!A:F,4,0),"") -> 3331-05 - Instrutor de cursos livres
C10: Cód. | D10: Descrição | G10: Referência | H10: Vencimentos | K10: Descontos
S11: 1
C12: =IFERROR(VLOOKUP(D12,Opcoes,2,0),"") -> 1 | D12: SALÁRIO | H12: 1837
C13: 90 | D13: INSS | K13: 146.96
C14: 200 | D14: IRRF
C15: 6 | D15: SERV. EXTRAORDINARIO 50% | G15: 12 | H15: 150.3
C16: 47 | D16: ADIANTAMENTO DE SALÁRIO | K16: 670
C17: 96 | D17: VALE TRANSPORTE | K17: 110
P25: _____/_____/_____ | Q25: DATA
H31: Total de Vencimentos | K31: Total de Descontos
H32: =SUM(H12:J29) -> 1987.3 | K32: =SUM(K12:M29) -> 926.96
H34: Valor Líquido | K34: =H32-K32 -> 1060.34
C37: Salário Base | E37: Sal. Contr. INSS | F37: Base Cálc. FGTS | G37: FGTS do Mês | I37: Base Cálc. IRRF | L37: Faixa IRRF
C38: =IFERROR(VLOOKUP(C8,BaseFuncionarios!A:E,5,0),"") -> 1837 | E38: =C38 -> 1837 | F38: =E38 -> 1837 | G38: =IFERROR(C38*8%,"") -> 146.96 | I38: =C38 -> 1837 | L38: =IFERROR(VLOOKUP(I38,tabIRRF,4),"") -> 1
B41: - - - - - - - - - - - - - - - - - - - - - - - - - - - - - - - - - - - - - - - - - - - - - - - - - - - - - - - - - - - - Cortar aqui - - - - - - - - - - - - - - - - - - - - - - - - - - - - - - - - - - - - - - - - - - - - - - - - - - - - - - - - - - - -
C44: =IF(C3="","",C3) -> Empresa Fictícia LTDA | G44: Recibo de Pagamento de Salário | O44: DECLARO TER RECEBIDO A I MPOTÂNCIA LÍQUIDA DISCRIMINADA NESTE RECIBO
P45: ________________________________
C46: =IF(C5="","",C5) -> CNPJ: | G46: =IF(G5="","",G5) -> Março/2018 | Q46: ASSINATURA DO FUNCIONÁRIO
C48: Código | D48: Nome do Funcionário | G48: CBO | H48: Emp. | I48: Local | J48: Depto. | K48: Setor | L48: Seção | M48: Fl.
C49: =IF(C8="","",C8) -> 1 | D49: =IF(D8="","",D8) -> João | G49: =IF(G8="","",G8) -> 3331-05 - Instrutor de cursos livres
C51: Cód. | D51: Descrição | G51: Referência | H51: Vencimentos | K51: Descontos
C53: =IF(C12="","",C12) -> 1 | D53: =IF(D12="","",D12) -> SALÁRIO | G53: =IF(G12="","",G12) ->  | H53: =IF(H12="","",H12) -> 1837 | K53: =IF(K12="","",K12) -> 
C54: =IF(C13="","",C13) -> 90 | D54: =IF(D13="","",D13) -> INSS | G54: =IF(G13="","",G13) ->  | H54: =IF(H13="","",H13) ->  | K54: =IF(K13="","",K13) -> 146.96
C55: 200 | D55: IRRF | K55: =IF(K14="","",K14) -> 
C56: 6 | D56: SERV. EXTRAORDINARIO 50% | G56: 12 | H56: 150.3 | K56: =IF(K15="","",K15) -> 
C57: 47 | D57: ADIANTAMENTO DE SALÁRIO | K57: =IF(K16="","",K16) -> 670
C58: 96 | D58: VALE TRANSPORTE | K58: 110
P66: _____/_____/_____ | Q66: DATA
H72: Total de Vencimentos | K72: Total de Descontos
H73: =IF(H32="","",H32) -> 1987.3 | K73: =IF(K32="","",K32) -> 926.96
H75: Valor Líquido | K75: =IF(K34="","",K34) -> 1060.34
C78: Salário Base | E78: Sal. Contr. INSS | F78: Base Cálc. FGTS | G78: FGTS do Mês | I78: Base Cálc. IRRF | L78: Faixa IRRF
C79: =IF(C38="","",C38) -> 1837 | E79: =IF(E38="","",E38) -> 1837 | F79: =IF(F38="","",F38) -> 1837 | G79: =IF(G38="","",G38) -> 146.96 | I79: =IF(I38="","",I38) -> 1837 | L79: =IF(L38="","",L38) -> 1

Sheet Calcular (hidden)
B1: SALÁRIO | C1: VENCIMENTOS | D1: SERV. EXTRAORDINARIO 50% | E1: SERV. EXTRAORDINÁRIO 100% | F1: ABONO DE FÉRIAS (1/3) | G1: ADIANTAMENTO DE SALÁRIO | H1: HORAS FALTA | I1: FALTAS EM DIAS | J1: INSS | K1: IRRF | L1: venc | O1: desc
A2: =Assistente!D12 -> SALÁRIO | B2: =IF($A2=B$1,Assistente!$C$38,0) -> 1837 | C2: =IF($A2=C$1,Assistente!$C$38,0) -> 0 | D2: =IF($A2=D$1,Assistente!$C$38/220*1.5*Assistente!G12,0) -> 0 | E2: =IF($A2=E$1,Assistente!$C$38/220*2*Assistente!G12,0) -> 0 | F2: =IF($A2=F$1,Assistente!$C$38/3,0) -> 0 | G2: =IF($A2=G$1,Assistente!$C$38*Assistente!G12,0) -> 0 | H2: =-IF($A2=H$1,Assistente!$C$38/220*Assistente!G12,0) -> 0 | I2: =-IF($A2=I$1,Assistente!$C$38/30*Assistente!G12,0) -> 0 | J2: =-IF($A2=J$1,Assistente!$C$38*VLOOKUP(Assistente!$C$38,tabINSS,2,1),0) -> 0 | K2: =-IF($A2=K$1,Assistente!$C$38*VLOOKUP(Assistente!$C$38,tabIRRF,2,1)-VLOOKUP(Assistente!$C$38,tabIRRF,3,1),0) -> 0 | L2: =IF(SUMIF(B2:K2,">0")=0,"",SUMIF(B2:K2,">0")) -> 1837 | O2: =IF(SUMIF(B2:K2,"<0")*-1=0,"",SUMIF(B2:K2,"<0")*-1) -> 
A3: =Assistente!D13 -> INSS | B3: =IF($A3=B$1,Assistente!$C$38,0) -> 0 | C3: =IF($A3=C$1,Assistente!$C$38,0) -> 0 | D3: =IF($A3=D$1,Assistente!$C$38/220*1.5*Assistente!G13,0) -> 0 | E3: =IF($A3=E$1,Assistente!$C$38/220*2*Assistente!G13,0) -> 0 | F3: =IF($A3=F$1,Assistente!$C$38/3,0) -> 0 | G3: =IF($A3=G$1,Assistente!$C$38*Assistente!G13,0) -> 0 | H3: =-IF($A3=H$1,Assistente!$C$38/220*Assistente!G13,0) -> 0 | I3: =-IF($A3=I$1,Assistente!$C$38/30*Assistente!G13,0) -> 0 | J3: =-IF($A3=J$1,Assistente!$C$38*VLOOKUP(Assistente!$C$38,tabINSS,2,1),0) -> -146.96 | K3: =-IF($A3=K$1,Assistente!$C$38*VLOOKUP(Assistente!$C$38,tabIRRF,2,1)-VLOOKUP(Assistente!$C$38,tabIRRF,3,1),0) -> 0 | L3: =IF(SUMIF(B3:K3,">0")=0,"",SUMIF(B3:K3,">0")) ->  | O3: =IF(SUMIF(B3:K3,"<0")*-1=0,"",SUMIF(B3:K3,"<0")*-1) -> 146.96
A4: =Assistente!D14 -> IRRF | B4: =IF($A4=B$1,Assistente!$C$38,0) -> 0 | C4: =IF($A4=C$1,Assistente!$C$38,0) -> 0 | D4: =IF($A4=D$1,Assistente!$C$38/220*1.5*Assistente!G14,0) -> 0 | E4: =IF($A4=E$1,Assistente!$C$38/220*2*Assistente!G14,0) -> 0 | F4: =IF($A4=F$1,Assistente!$C$38/3,0) -> 0 | G4: =IF($A4=G$1,Assistente!$C$38*Assistente!G14,0) -> 0 | H4: =-IF($A4=H$1,Assistente!$C$38/220*Assistente!G14,0) -> 0 | I4: =-IF($A4=I$1,Assistente!$C$38/30*Assistente!G14,0) -> 0 | J4: =-IF($A4=J$1,Assistente!$C$38*VLOOKUP(Assistente!$C$38,tabINSS,2,1),0) -> 0 | K4: =-IF($A4=K$1,Assistente!$C$38*VLOOKUP(Assistente!$C$38,tabIRRF,2,1)-VLOOKUP(Assistente!$C$38,tabIRRF,3,1),0) -> 0
A5: =Assistente!D15 -> SERV. EXTRAORDINARIO 50% | B5: =IF($A5=B$1,Assistente!$C$38,0) -> 0 | C5: =IF($A5=C$1,Assistente!$C$38,0) -> 0 | D5: =IF($A5=D$1,Assistente!$C$38/220*1.5*Assistente!G15,0) -> 150.3 | E5: =IF($A5=E$1,Assistente!$C$38/220*2*Assistente!G15,0) -> 0 | F5: =IF($A5=F$1,Assistente!$C$38/3,0) -> 0 | G5: =IF($A5=G$1,Assistente!$C$38*Assistente!G15,0) -> 0 | H5: =-IF($A5=H$1,Assistente!$C$38/220*Assistente!G15,0) -> 0 | I5: =-IF($A5=I$1,Assistente!$C$38/30*Assistente!G15,0) -> 0 | J5: =-IF($A5=J$1,Assistente!$C$38*VLOOKUP(Assistente!$C$38,tabINSS,2,1),0) -> 0 | K5: =-IF($A5=K$1,Assistente!$C$38*VLOOKUP(Assistente!$C$38,tabIRRF,2,1)-VLOOKUP(Assistente!$C$38,tabIRRF,3,1),0) -> 0 | L5: 150.3
A6: =Assistente!D16 -> ADIANTAMENTO DE SALÁRIO | B6: =IF($A6=B$1,Assistente!$C$38,0) -> 0 | C6: =IF($A6=C$1,Assistente!$C$38,0) -> 0 | D6: =IF($A6=D$1,Assistente!$C$38/220*1.5*Assistente!G16,0) -> 0 | E6: =IF($A6=E$1,Assistente!$C$38/220*2*Assistente!G16,0) -> 0 | F6: =IF($A6=F$1,Assistente!$C$38/3,0) -> 0 | G6: =IF($A6=G$1,Assistente!$C$38*Assistente!G16,0) -> 0 | H6: =-IF($A6=H$1,Assistente!$C$38/220*Assistente!G16,0) -> 0 | I6: =-IF($A6=I$1,Assistente!$C$38/30*Assistente!G16,0) -> 0 | J6: =-IF($A6=J$1,Assistente!$C$38*VLOOKUP(Assistente!$C$38,tabINSS,2,1),0) -> 0 | K6: =-IF($A6=K$1,Assistente!$C$38*VLOOKUP(Assistente!$C$38,tabIRRF,2,1)-VLOOKUP(Assistente!$C$38,tabIRRF,3,1),0) -> 0
A7: =Assistente!D17 -> VALE TRANSPORTE | B7: =IF($A7=B$1,Assistente!$C$38,0) -> 0 | C7: =IF($A7=C$1,Assistente!$C$38,0) -> 0 | D7: =IF($A7=D$1,Assistente!$C$38/220*1.5*Assistente!G17,0) -> 0 | E7: =IF($A7=E$1,Assistente!$C$38/220*2*Assistente!G17,0) -> 0 | F7: =IF($A7=F$1,Assistente!$C$38/3,0) -> 0 | G7: =IF($A7=G$1,Assistente!$C$38*Assistente!G17,0) -> 0 | H7: =-IF($A7=H$1,Assistente!$C$38/220*Assistente!G17,0) -> 0 | I7: =-IF($A7=I$1,Assistente!$C$38/30*Assistente!G17,0) -> 0 | J7: =-IF($A7=J$1,Assistente!$C$38*VLOOKUP(Assistente!$C$38,tabINSS,2,1),0) -> 0 | K7: =-IF($A7=K$1,Assistente!$C$38*VLOOKUP(Assistente!$C$38,tabIRRF,2,1)-VLOOKUP(Assistente!$C$38,tabIRRF,3,1),0) -> 0
A8: =Assistente!D18 -> 0 | B8: =IF($A8=B$1,Assistente!$C$38,0) -> 0 | C8: =IF($A8=C$1,Assistente!$C$38,0) -> 0 | D8: =IF($A8=D$1,Assistente!$C$38/220*1.5*Assistente!G18,0) -> 0 | E8: =IF($A8=E$1,Assistente!$C$38/220*2*Assistente!G18,0) -> 0 | F8: =IF($A8=F$1,Assistente!$C$38/3,0) -> 0 | G8: =IF($A8=G$1,Assistente!$C$38*Assistente!G18,0) -> 0 | H8: =-IF($A8=H$1,Assistente!$C$38/220*Assistente!G18,0) -> 0 | I8: =-IF($A8=I$1,Assistente!$C$38/30*Assistente!G18,0) -> 0 | J8: =-IF($A8=J$1,Assistente!$C$38*VLOOKUP(Assistente!$C$38,tabINSS,2,1),0) -> 0 | K8: =-IF($A8=K$1,Assistente!$C$38*VLOOKUP(Assistente!$C$38,tabIRRF,2,1)-VLOOKUP(Assistente!$C$38,tabIRRF,3,1),0) -> 0
A9: =Assistente!D19 -> 0 | B9: =IF($A9=B$1,Assistente!$C$38,0) -> 0 | C9: =IF($A9=C$1,Assistente!$C$38,0) -> 0 | D9: =IF($A9=D$1,Assistente!$C$38/220*1.5*Assistente!G19,0) -> 0 | E9: =IF($A9=E$1,Assistente!$C$38/220*2*Assistente!G19,0) -> 0 | F9: =IF($A9=F$1,Assistente!$C$38/3,0) -> 0 | G9: =IF($A9=G$1,Assistente!$C$38*Assistente!G19,0) -> 0 | H9: =-IF($A9=H$1,Assistente!$C$38/220*Assistente!G19,0) -> 0 | I9: =-IF($A9=I$1,Assistente!$C$38/30*Assistente!G19,0) -> 0 | J9: =-IF($A9=J$1,Assistente!$C$38*VLOOKUP(Assistente!$C$38,tabINSS,2,1),0) -> 0 | K9: =-IF($A9=K$1,Assistente!$C$38*VLOOKUP(Assistente!$C$38,tabIRRF,2,1)-VLOOKUP(Assistente!$C$38,tabIRRF,3,1),0) -> 0
A10: =Assistente!D20 -> 0 | B10: =IF($A10=B$1,Assistente!$C$38,0) -> 0 | C10: =IF($A10=C$1,Assistente!$C$38,0) -> 0 | D10: =IF($A10=D$1,Assistente!$C$38/220*1.5*Assistente!G20,0) -> 0 | E10: =IF($A10=E$1,Assistente!$C$38/220*2*Assistente!G20,0) -> 0 | F10: =IF($A10=F$1,Assistente!$C$38/3,0) -> 0 | G10: =IF($A10=G$1,Assistente!$C$38*Assistente!G20,0) -> 0 | H10: =-IF($A10=H$1,Assistente!$C$38/220*Assistente!G20,0) -> 0 | I10: =-IF($A10=I$1,Assistente!$C$38/30*Assistente!G20,0) -> 0 | J10: =-IF($A10=J$1,Assistente!$C$38*VLOOKUP(Assistente!$C$38,tabINSS,2,1),0) -> 0 | K10: =-IF($A10=K$1,Assistente!$C$38*VLOOKUP(Assistente!$C$38,tabIRRF,2,1)-VLOOKUP(Assistente!$C$38,tabIRRF,3,1),0) -> 0
A11: =Assistente!D21 -> 0 | B11: =IF($A11=B$1,Assistente!$C$38,0) -> 0 | C11: =IF($A11=C$1,Assistente!$C$38,0) -> 0 | D11: =IF($A11=D$1,Assistente!$C$38/220*1.5*Assistente!G21,0) -> 0 | E11: =IF($A11=E$1,Assistente!$C$38/220*2*Assistente!G21,0) -> 0 | F11: =IF($A11=F$1,Assistente!$C$38/3,0) -> 0 | G11: =IF($A11=G$1,Assistente!$C$38*Assistente!G21,0) -> 0 | H11: =-IF($A11=H$1,Assistente!$C$38/220*Assistente!G21,0) -> 0 | I11: =-IF($A11=I$1,Assistente!$C$38/30*Assistente!G21,0) -> 0 | J11: =-IF($A11=J$1,Assistente!$C$38*VLOOKUP(Assistente!$C$38,tabINSS,2,1),0) -> 0 | K11: =-IF($A11=K$1,Assistente!$C$38*VLOOKUP(Assistente!$C$38,tabIRRF,2,1)-VLOOKUP(Assistente!$C$38,tabIRRF,3,1),0) -> 0
A12: =Assistente!D22 -> 0 | B12: =IF($A12=B$1,Assistente!$C$38,0) -> 0 | C12: =IF($A12=C$1,Assistente!$C$38,0) -> 0 | D12: =IF($A12=D$1,Assistente!$C$38/220*1.5*Assistente!G22,0) -> 0 | E12: =IF($A12=E$1,Assistente!$C$38/220*2*Assistente!G22,0) -> 0 | F12: =IF($A12=F$1,Assistente!$C$38/3,0) -> 0 | G12: =IF($A12=G$1,Assistente!$C$38*Assistente!G22,0) -> 0 | H12: =-IF($A12=H$1,Assistente!$C$38/220*Assistente!G22,0) -> 0 | I12: =-IF($A12=I$1,Assistente!$C$38/30*Assistente!G22,0) -> 0 | J12: =-IF($A12=J$1,Assistente!$C$38*VLOOKUP(Assistente!$C$38,tabINSS,2,1),0) -> 0 | K12: =-IF($A12=K$1,Assistente!$C$38*VLOOKUP(Assistente!$C$38,tabIRRF,2,1)-VLOOKUP(Assistente!$C$38,tabIRRF,3,1),0) -> 0
A13: =Assistente!D23 -> 0 | B13: =IF($A13=B$1,Assistente!$C$38,0) -> 0 | C13: =IF($A13=C$1,Assistente!$C$38,0) -> 0 | D13: =IF($A13=D$1,Assistente!$C$38/220*1.5*Assistente!G23,0) -> 0 | E13: =IF($A13=E$1,Assistente!$C$38/220*2*Assistente!G23,0) -> 0 | F13: =IF($A13=F$1,Assistente!$C$38/3,0) -> 0 | G13: =IF($A13=G$1,Assistente!$C$38*Assistente!G23,0) -> 0 | H13: =-IF($A13=H$1,Assistente!$C$38/220*Assistente!G23,0) -> 0 | I13: =-IF($A13=I$1,Assistente!$C$38/30*Assistente!G23,0) -> 0 | J13: =-IF($A13=J$1,Assistente!$C$38*VLOOKUP(Assistente!$C$38,tabINSS,2,1),0) -> 0 | K13: =-IF($A13=K$1,Assistente!$C$38*VLOOKUP(Assistente!$C$38,tabIRRF,2,1)-VLOOKUP(Assistente!$C$38,tabIRRF,3,1),0) -> 0
A14: =Assistente!D24 -> 0 | B14: =IF($A14=B$1,Assistente!$C$38,0) -> 0 | C14: =IF($A14=C$1,Assistente!$C$38,0) -> 0 | D14: =IF($A14=D$1,Assistente!$C$38/220*1.5*Assistente!G24,0) -> 0 | E14: =IF($A14=E$1,Assistente!$C$38/220*2*Assistente!G24,0) -> 0 | F14: =IF($A14=F$1,Assistente!$C$38/3,0) -> 0 | G14: =IF($A14=G$1,Assistente!$C$38*Assistente!G24,0) -> 0 | H14: =-IF($A14=H$1,Assistente!$C$38/220*Assistente!G24,0) -> 0 | I14: =-IF($A14=I$1,Assistente!$C$38/30*Assistente!G24,0) -> 0 | J14: =-IF($A14=J$1,Assistente!$C$38*VLOOKUP(Assistente!$C$38,tabINSS,2,1),0) -> 0 | K14: =-IF($A14=K$1,Assistente!$C$38*VLOOKUP(Assistente!$C$38,tabIRRF,2,1)-VLOOKUP(Assistente!$C$38,tabIRRF,3,1),0) -> 0
A15: =Assistente!D25 -> 0 | B15: =IF($A15=B$1,Assistente!$C$38,0) -> 0 | C15: =IF($A15=C$1,Assistente!$C$38,0) -> 0 | D15: =IF($A15=D$1,Assistente!$C$38/220*1.5*Assistente!G25,0) -> 0 | E15: =IF($A15=E$1,Assistente!$C$38/220*2*Assistente!G25,0) -> 0 | F15: =IF($A15=F$1,Assistente!$C$38/3,0) -> 0 | G15: =IF($A15=G$1,Assistente!$C$38*Assistente!G25,0) -> 0 | H15: =-IF($A15=H$1,Assistente!$C$38/220*Assistente!G25,0) -> 0 | I15: =-IF($A15=I$1,Assistente!$C$38/30*Assistente!G25,0) -> 0 | J15: =-IF($A15=J$1,Assistente!$C$38*VLOOKUP(Assistente!$C$38,tabINSS,2,1),0) -> 0 | K15: =-IF($A15=K$1,Assistente!$C$38*VLOOKUP(Assistente!$C$38,tabIRRF,2,1)-VLOOKUP(Assistente!$C$38,tabIRRF,3,1),0) -> 0
A16: =Assistente!D26 -> 0 | B16: =IF($A16=B$1,Assistente!$C$38,0) -> 0 | C16: =IF($A16=C$1,Assistente!$C$38,0) -> 0 | D16: =IF($A16=D$1,Assistente!$C$38/220*1.5*Assistente!G26,0) -> 0 | E16: =IF($A16=E$1,Assistente!$C$38/220*2*Assistente!G26,0) -> 0 | F16: =IF($A16=F$1,Assistente!$C$38/3,0) -> 0 | G16: =IF($A16=G$1,Assistente!$C$38*Assistente!G26,0) -> 0 | H16: =-IF($A16=H$1,Assistente!$C$38/220*Assistente!G26,0) -> 0 | I16: =-IF($A16=I$1,Assistente!$C$38/30*Assistente!G26,0) -> 0 | J16: =-IF($A16=J$1,Assistente!$C$38*VLOOKUP(Assistente!$C$38,tabINSS,2,1),0) -> 0 | K16: =-IF($A16=K$1,Assistente!$C$38*VLOOKUP(Assistente!$C$38,tabIRRF,2,1)-VLOOKUP(Assistente!$C$38,tabIRRF,3,1),0) -> 0
A17: =Assistente!D27 -> 0 | B17: =IF($A17=B$1,Assistente!$C$38,0) -> 0 | C17: =IF($A17=C$1,Assistente!$C$38,0) -> 0 | D17: =IF($A17=D$1,Assistente!$C$38/220*1.5*Assistente!G27,0) -> 0 | E17: =IF($A17=E$1,Assistente!$C$38/220*2*Assistente!G27,0) -> 0 | F17: =IF($A17=F$1,Assistente!$C$38/3,0) -> 0 | G17: =IF($A17=G$1,Assistente!$C$38*Assistente!G27,0) -> 0 | H17: =-IF($A17=H$1,Assistente!$C$38/220*Assistente!G27,0) -> 0 | I17: =-IF($A17=I$1,Assistente!$C$38/30*Assistente!G27,0) -> 0 | J17: =-IF($A17=J$1,Assistente!$C$38*VLOOKUP(Assistente!$C$38,tabINSS,2,1),0) -> 0 | K17: =-IF($A17=K$1,Assistente!$C$38*VLOOKUP(Assistente!$C$38,tabIRRF,2,1)-VLOOKUP(Assistente!$C$38,tabIRRF,3,1),0) -> 0
A18: =Assistente!D28 -> 0 | B18: =IF($A18=B$1,Assistente!$C$38,0) -> 0 | C18: =IF($A18=C$1,Assistente!$C$38,0) -> 0 | D18: =IF($A18=D$1,Assistente!$C$38/220*1.5*Assistente!G28,0) -> 0 | E18: =IF($A18=E$1,Assistente!$C$38/220*2*Assistente!G28,0) -> 0 | F18: =IF($A18=F$1,Assistente!$C$38/3,0) -> 0 | G18: =IF($A18=G$1,Assistente!$C$38*Assistente!G28,0) -> 0 | H18: =-IF($A18=H$1,Assistente!$C$38/220*Assistente!G28,0) -> 0 | I18: =-IF($A18=I$1,Assistente!$C$38/30*Assistente!G28,0) -> 0 | J18: =-IF($A18=J$1,Assistente!$C$38*VLOOKUP(Assistente!$C$38,tabINSS,2,1),0) -> 0 | K18: =-IF($A18=K$1,Assistente!$C$38*VLOOKUP(Assistente!$C$38,tabIRRF,2,1)-VLOOKUP(Assistente!$C$38,tabIRRF,3,1),0) -> 0
A19: =Assistente!D29 -> 0 | B19: =IF($A19=B$1,Assistente!$C$38,0) -> 0 | C19: =IF($A19=C$1,Assistente!$C$38,0) -> 0 | D19: =IF($A19=D$1,Assistente!$C$38/220*1.5*Assistente!G29,0) -> 0 | E19: =IF($A19=E$1,Assistente!$C$38/220*2*Assistente!G29,0) -> 0 | F19: =IF($A19=F$1,Assistente!$C$38/3,0) -> 0 | G19: =IF($A19=G$1,Assistente!$C$38*Assistente!G29,0) -> 0 | H19: =-IF($A19=H$1,Assistente!$C$38/220*Assistente!G29,0) -> 0 | I19: =-IF($A19=I$1,Assistente!$C$38/30*Assistente!G29,0) -> 0 | J19: =-IF($A19=J$1,Assistente!$C$38*VLOOKUP(Assistente!$C$38,tabINSS,2,1),0) -> 0 | K19: =-IF($A19=K$1,Assistente!$C$38*VLOOKUP(Assistente!$C$38,tabIRRF,2,1)-VLOOKUP(Assistente!$C$38,tabIRRF,3,1),0) -> 0

Sheet Informações (hidden)
A1: SALÁRIO DE CONTRIBUIÇÃO (R$) | B1: ALÍQUOTA INSS | H1: Base de cálculo (R$) | I1: Alíquota (%) | J1: Parcela a deduzir do IRPF (R$) | L1: Meses
A2: até 1.693,72 | B2: 0.08 | D2: 0 | E2: =B2 -> 0.08 | H2: 0 | I2: 0 | J2: 0 | K2: 1 | L2: Janeiro
A3: de 1.693,73 até 2.822,90 | B3: 0.09 | D3: =RIGHT(A2,8) -> 1.693,72 | E3: =B3 -> 0.09 | H3: 1903.98 | I3: 0.075 | J3: 142.8 | K3: 2 | L3: Fevereiro
A4: de 2.822,91 até 5.645,80 | B4: 0.11 | D4: =RIGHT(A3,8) -> 2.822,90 | E4: =B4 -> 0.11 | H4: 2826.65 | I4: 0.15 | J4: 354.8 | K4: 3 | L4: Março
H5: 3751.05 | I5: 0.225 | J5: 636.13 | K5: 4 | L5: Abril
H6: 4664.68 | I6: 0.275 | J6: 869.36 | K6: 5 | L6: Maio
L7: Junho
A8: DESCRIÇÃO | B8: COD | H8: Nome da empresa | I8: Empresa Fictícia LTDA | L8: Julho
A9: SALÁRIO | B9: 1 | H9: CNPJ da empresa | I9: 12345675334211 | L9: Agosto
A10: VENCIMENTOS | B10: 2 | H10: Mês Ref | I10: Março | L10: Setembro
A11: ADICIONAL TEMPO DE SERVIÇO | B11: 4 | H11: Ano Ref | I11: 2018 | L11: Outubro
A12: SERV. EXTRAORDINARIO 50% | B12: 6 | L12: Novembro
A13: SERV. EXTRAORDINÁRIO 100% | B13: 7 | H13: CNPJ com formato | I13: 12.345.675/3342-11 | L13: Dezembro
A14: ABONO DE FÉRIAS (1/3) | B14: 13
A15: ADICIONAL NOTURNO | B15: 30 | H15: CodFuncionario | I15: 1
A16: SALDO SALÁRIO RESCISÃO | B16: 32
A17: GRAT. INCENTIVO TITULAÇÃO | B17: 34
A18: GRATIF PRODUTIVIDADE | B18: 35
A19: ADICIONAL PERICULOSIDADE | B19: 36
A20: SALÁRIO FAMILIA CLT | B20: 42
A21: AUXÍLIO ALIMENTAÇÃO | B21: 43
A22: 13º SALÁRIO CLT | B22: 44
A23: ADIANTAMENTO DE SALÁRIO | B23: 47
A24: HORAS FALTA | B24: 54
A25: PENSÃO JUDICIAL | B25: 59
A26: FALTAS EM DIAS | B26: 61
A27: INSS | B27: 90
A28: VALE TRANSPORTE | B28: 96
A29: INSS S/13º SALÁRIO | B29: 98
A30: DÉCIMO TERCEIRO | B30: 119
A31: AJUDA DE CUSTO | B31: 130
A32: CONVÊNIO MÉDICO | B32: 171
A33: IRRF | B33: 200

Sheet BaseFuncionarios (hidden)
A1: Cod | B1: Nome | C1: CBO | D1: Ocupação | E1: Salário
A2: 1 | B2: João | C2: 3331-05 | D2: Instrutor de cursos livres | E2: 1837

Sheet GerarManualColorido
B2: Nome da empresa | E2: Nome fantasia LTDA | H2: Cargo do funcionário | L2: Instrutor
B3: CNPJ | E3: 123456789000189 | H3: Salário do funcionário | L3: 1844
B4: Código do funcionário | E4: 105
B5: Nome do funcionário | E5: Evandro Gomes Ferreira | H5: Referente à | L5: Junho/2018
B6: Código CBO | E6: 2332-25
C9: 00.0067 - Compuclass Informática LTDA | G9: Recibo de Pagamento de Salário | O9: DECLARO TER RECEBIDO A I MPOTÂNCIA LÍQUIDA DISCRIMINADA NESTE RECIBO
P10: ________________________________
C11: CNPJ: | D11: 01.932.018.0001/94 | G11: =L5 -> Junho/2018 | Q11: ASSINATURA DO FUNCIONÁRIO
C13: Código | D13: Nome do Funcionário | G13: CBO | H13: Emp. | I13: Local | J13: Depto. | K13: Setor | L13: Seção | M13: Fl.
C14: 3043 | D14: =E5 -> Evandro Gomes Ferreira | G14: =E6&" - "&L2 -> 2332-25 - Instrutor
C16: Cód. | D16: Descrição | G16: Referência | H16: Vencimentos | K16: Descontos
D18: Salário | H18: 1844
D19: Adiantamento 15/05 | K19: 737
D20: Hora extra | G20: 28.83333333 | H20: =G20*H18/220*1.75 -> 422.9325758
D21: Integração HE no DSR | G21: =G20*0.2 -> 5.766666667 | H21: =H20*0.21 -> 88.81584091
D22: INSS sobre salário | G22: 0.09 | K22: =G22*H38 -> 212.0173575
D23: Vale transporte | G23: 0.06 | K23: =H18*G23 -> 110.64
D24: Assistência odontológica | K24: 9.48
P31: _____/_____/_____ | Q31: DATA
H37: Total de Vencimentos | K37: Total de Descontos
H38: =SUM(H18:J35) -> 2355.748417 | K38: =SUM(K18:M35) -> 1069.137358
H40: Valor Líquido | K40: =H38-K38 -> 1286.611059
C43: Salário Base | E43: Sal. Contr. INSS | F43: Base Cálc. FGTS | G43: FGTS do Mês | I43: Base Cálc. IRRF | L43: Faixa IRRF
C44: =L3 -> 1844 | E44: =C44 -> 1844 | F44: =E44 -> 1844 | G44: =C44*8% -> 147.52 | I44: =C44 -> 1844 | L44: =VLOOKUP(I38,tabIRRF,4) -> 1
B47: - - - - - - - - - - - - - - - - - - - - - - - - - - - - - - - - - - - - - - - - - - - - - - - - - - - - - - - - - - - - Cortar aqui - - - - - - - - - - - - - - - - - - - - - - - - - - - - - - - - - - - - - - - - - - - - - - - - - - - - - - - - - - - -
C50: =IF(C9="","",C9) -> 00.0067 - Compuclass Informática LTDA | G50: Recibo de Pagamento de Salário | O50: DECLARO TER RECEBIDO A I MPOTÂNCIA LÍQUIDA DISCRIMINADA NESTE RECIBO
P51: ________________________________
C52: =IF(C11="","",C11) -> CNPJ: | G52: =IF(G11="","",G11) -> Junho/2018 | Q52: ASSINATURA DO FUNCIONÁRIO
C54: Código | D54: Nome do Funcionário | G54: CBO | H54: Emp. | I54: Local | J54: Depto. | K54: Setor | L54: Seção | M54: Fl.
C55: =IF(C14="","",C14) -> 3043 | D55: =IF(D14="","",D14) -> Evandro Gomes Ferreira | G55: =IF(G14="","",G14) -> 2332-25 - Instrutor
C57: Cód. | D57: Descrição | G57: Referência | H57: Vencimentos | K57: Descontos
C59: =IF(C18="","",C18) ->  | D59: =IF(D18="","",D18) -> Salário | G59: =IF(G18="","",G18) ->  | H59: =IF(H18="","",H18) -> 1844 | K59: =IF(K18="","",K18) -> 
C60: =IF(C19="","",C19) ->  | D60: Adiantamento 15/05 | G60: =IF(G19="","",G19) ->  | K60: =IF(K19="","",K19) -> 737
D61: Hora extra | G61: 28.83333333 | H61: 422.9325758 | K61: =IF(K20="","",K20) -> 
D62: Integração HE no DSR | G62: 5.766666667 | H62: 88.81584091 | K62: =IF(K21="","",K21) -> 
D63: INSS sobre salário | G63: 0.09 | K63: =IF(K22="","",K22) -> 212.0173575
D64: Vale transporte | G64: 0.06 | K64: 110.64
D65: Assistência odontológica | K65: 9.48
P72: _____/_____/_____ | Q72: DATA
C76: =IF(C35="","",C35) ->  | D76: =IF(D35="","",D35) ->  | G76: =IF(G35="","",G35) ->  | H76: =IF(H35="","",H35) -> 
H78: Total de Vencimentos | K78: Total de Descontos
H79: =IF(H38="","",H38) -> 2355.748417 | K79: =IF(K38="","",K38) -> 1069.137358
H81: Valor Líquido | K81: =IF(K40="","",K40) -> 1286.611059
C84: Salário Base | E84: Sal. Contr. INSS | F84: Base Cálc. FGTS | G84: FGTS do Mês | I84: Base Cálc. IRRF | L84: Faixa IRRF
C85: =IF(C44="","",C44) -> 1844 | E85: =IF(E44="","",E44) -> 1844 | F85: =IF(F44="","",F44) -> 1844 | G85: =IF(G44="","",G44) -> 147.52 | I85: =IF(I44="","",I44) -> 1844 | L85: =IF(L44="","",L44) -> 1

Sheet GerarManualPB
B2: Nome da empresa | E2: Nome fantasia LTDA | H2: Cargo do funcionário | L2: Padeiro
B3: CNPJ | E3: 123456789000189 | H3: Salário do funcionário | L3: 1200
B4: Código do funcionário | E4: 105
B5: Nome do funcionário | E5: João de Jesus | H5: Referente à | L5: Abril/2018
B6: Código CBO | E6: 7232-40
C9: =E2 -> Nome fantasia LTDA | G9: Recibo de Pagamento de Salário | O9: DECLARO TER RECEBIDO A I MPOTÂNCIA LÍQUIDA DISCRIMINADA NESTE RECIBO
P10: ________________________________
C11: CNPJ: | D11: =E3 -> 123456789000189 | G11: =L5 -> Abril/2018 | Q11: ASSINATURA DO FUNCIONÁRIO
C13: Código | D13: Nome do Funcionário | G13: CBO | H13: Emp. | I13: Local | J13: Depto. | K13: Setor | L13: Seção | M13: Fl.
C14: =CodFuncionario -> 1 | D14: =IF(MAX(BaseFuncionarios!A:A)=0,"Nenhum funcionário cadastrado",IFERROR(VLOOKUP(C14,BaseFuncionarios!A:C,2,0),"Não encontrado")) -> João | G14: =E6&" - "&L2 -> 7232-40 - Padeiro
C16: Cód. | D16: Descrição | G16: Referência | H16: Vencimentos | K16: Descontos
H18: =IF(C18=1,C44,"") -> 
P31: _____/_____/_____ | Q31: DATA
H37: Total de Vencimentos | K37: Total de Descontos
H38: =SUM(H18:J35) -> 0 | K38: =SUM(K18:M35) -> 0
H40: Valor Líquido | K40: =H38-K38 -> 0
C43: Salário Base | E43: Sal. Contr. INSS | F43: Base Cálc. FGTS | G43: FGTS do Mês | I43: Base Cálc. IRRF | L43: Faixa IRRF
C44: =IFERROR(VLOOKUP(C14,BaseFuncionarios!A:F,5,0),0) -> 1837 | E44: =C44 -> 1837 | F44: =E44 -> 1837 | G44: =C44*8% -> 146.96 | I44: 2225 | L44: 2
B47: - - - - - - - - - - - - - - - - - - - - - - - - - - - - - - - - - - - - - - - - - - - - - - - - - - - - - - - - - - - - Cortar aqui - - - - - - - - - - - - - - - - - - - - - - - - - - - - - - - - - - - - - - - - - - - - - - - - - - - - - - - - - - - -
C50: =IF(C9="","",C9) -> Nome fantasia LTDA | G50: Recibo de Pagamento de Salário | O50: DECLARO TER RECEBIDO A I MPOTÂNCIA LÍQUIDA DISCRIMINADA NESTE RECIBO
P51: ________________________________
C52: =IF(C11="","",C11) -> CNPJ: | G52: =IF(G11="","",G11) -> Abril/2018 | Q52: ASSINATURA DO FUNCIONÁRIO
C54: Código | D54: Nome do Funcionário | G54: CBO | H54: Emp. | I54: Local | J54: Depto. | K54: Setor | L54: Seção | M54: Fl.
C55: =IF(C14="","",C14) -> 1 | D55: =IF(D14="","",D14) -> João | G55: =IF(G14="","",G14) -> 7232-40 - Padeiro
C57: Cód. | D57: Descrição | G57: Referência | H57: Vencimentos | K57: Descontos
C59: =IF(C18="","",C18) ->  | D59: =IF(D18="","",D18) ->  | G59: =IF(G18="","",G18) ->  | H59: =IF(H18="","",H18) ->  | K59: =IF(K18="","",K18) -> 
C60: =IF(C19="","",C19) ->  | G60: =IF(G19="","",G19) ->  | K60: =IF(K19="","",K19) -> 
K61: =IF(K20="","",K20) -> 
K62: =IF(K21="","",K21) -> 
K63: =IF(K22="","",K22) -> 
P72: _____/_____/_____ | Q72: DATA
C76: =IF(C35="","",C35) ->  | D76: =IF(D35="","",D35) ->  | G76: =IF(G35="","",G35) ->  | H76: =IF(H35="","",H35) -> 
H78: Total de Vencimentos | K78: Total de Descontos
H79: =IF(H38="","",H38) -> 0 | K79: =IF(K38="","",K38) -> 0
H81: Valor Líquido | K81: =IF(K40="","",K40) -> 0
C84: Salário Base | E84: Sal. Contr. INSS | F84: Base Cálc. FGTS | G84: FGTS do Mês | I84: Base Cálc. IRRF | L84: Faixa IRRF
C85: =IF(C44="","",C44) -> 1837 | E85: =IF(E44="","",E44) -> 1837 | F85: =IF(F44="","",F44) -> 1837 | G85: =IF(G44="","",G44) -> 146.96 | I85: =IF(I44="","",I44) -> 2225 | L85: =IF(L44="","",L44) -> 2

Sheet Modelo (hidden)
G3: Recibo de Pagamento de Salário | O3: DECLARO TER RECEBIDO A I MPOTÂNCIA LÍQUIDA DISCRIMINADA NESTE RECIBO
P4: ________________________________
Q5: ASSINATURA DO FUNCIONÁRIO
C7: Código | D7: Nome do Funcionário | G7: CBO | H7: Emp. | I7: Local | J7: Depto. | K7: Setor | L7: Seção | M7: Fl.
C10: Cód. | D10: Descrição | G10: Referência | H10: Vencimentos | K10: Descontos
P25: _____/_____/_____ | Q25: DATA
H31: Total de Vencimentos | K31: Total de Descontos
H32: =SUM(H12:J29) -> 0 | K32: =SUM(K12:M29) -> 0
H34: Valor Líquido | K34: =H32-K32 -> 0
C37: Salário Base | E37: Sal. Contr. INSS | F37: Base Cálc. FGTS | G37: FGTS do Mês | I37: Base Cálc. IRRF | L37: Faixa IRRF
C38: =IFERROR(VLOOKUP(C8,BaseFuncionarios!A:F,5,0),0) -> 0 | E38: =C38 -> 0 | F38: =E38 -> 0 | G38: =C38*8% -> 0 | I38: 2225 | L38: 2
B41: - - - - - - - - - - - - - - - - - - - - - - - - - - - - - - - - - - - - - - - - - - - - - - - - - - - - - - - - - - - - Cortar aqui - - - - - - - - - - - - - - - - - - - - - - - - - - - - - - - - - - - - - - - - - - - - - - - - - - - - - - - - - - - -
C44: =IF(C3="","",C3) ->  | G44: Recibo de Pagamento de Salário | O44: DECLARO TER RECEBIDO A I MPOTÂNCIA LÍQUIDA DISCRIMINADA NESTE RECIBO
P45: ________________________________
C46: =IF(C5="","",C5) ->  | G46: =IF(G5="","",G5) ->  | Q46: ASSINATURA DO FUNCIONÁRIO
C48: Código | D48: Nome do Funcionário | G48: CBO | H48: Emp. | I48: Local | J48: Depto. | K48: Setor | L48: Seção | M48: Fl.
C49: =IF(C8="","",C8) ->  | D49: =IF(D8="","",D8) ->  | G49: =IF(G8="","",G8) -> 
C51: Cód. | D51: Descrição | G51: Referência | H51: Vencimentos | K51: Descontos
C53: =IF(C12="","",C12) -> 
C54: =IF(C13="","",C13) -> 
P66: _____/_____/_____ | Q66: DATA
C70: =IF(C29="","",C29) -> 
H72: Total de Vencimentos | K72: Total de Descontos
H73: =IF(H32="","",H32) -> 0 | K73: =IF(K32="","",K32) -> 0
H75: Valor Líquido | K75: =IF(K34="","",K34) -> 0
C78: Salário Base | E78: Sal. Contr. INSS | F78: Base Cálc. FGTS | G78: FGTS do Mês | I78: Base Cálc. IRRF | L78: Faixa IRRF
C79: =IF(C38="","",C38) -> 0 | E79: =IF(E38="","",E38) -> 0 | F79: =IF(F38="","",F38) -> 0 | G79: =IF(G38="","",G38) -> 0 | I79: =IF(I38="","",I38) -> 2225 | L79: =IF(L38="","",L38) -> 2

Sheet CBO (hidden)
A1: CBO | B1: Letra | C1: TITULO | E1: LETRA | F1: I | G1: =VLOOKUP(F1,B2:C2627,2,0) -> Identificador florestal | H1: Instrutor de cursos livres
A2: 8485-05 | B2: =LEFT(C2,1) -> A | C2: Abatedor | G2: =INDIRECT("A"&MATCH(escolha,cbo,0)) -> 3331-05
A3: 7643-05 | B3: =LEFT(C3,1) -> A | C3: Acabador de calçados
A4: 7663-05 | B4: A | C4: Acabador de embalagens (flexíveis e cartotécnicas)
A5: 7161-05 | B5: A | C5: Acabador de superfícies de concreto
A6: 8485-10 | B6: A | C6: Açougueiro
A7: 3762-05 | B7: A | C7: Acrobata
A8: 6230-05 | B8: A | C8: Adestrador de animais
A9: 2521-05 | B9: A | C9: Administrador
A10: 2123-05 | B10: A | C10: Administrador de banco de dados
A11: 5101-10 | B11: A | C11: Administrador de edifícios
A12: 2525-05 | B12: A | C12: Administrador de fundos e carteiras de investimento
A13: 2123-10 | B13: A | C13: Administrador de redes
A14: 2123-15 | B14: A | C14: Administrador de sistemas operacionais
A15: 2123-20 | B15: A | C15: Administrador em segurança da informação
A16: 2410-05 | B16: A | C16: Advogado
A17: 2410-30 | B17: A | C17: Advogado (áreas especiais)
A18: 2410-15 | B18: A | C18: Advogado (direito civil)
A19: 2410-35 | B19: A | C19: Advogado (direito do trabalho)
A20: 2410-25 | B20: A | C20: Advogado (direito penal)
A21: 2410-20 | B21: A | C21: Advogado (direito público)
A22: 2412-05 | B22: A | C22: Advogado da união
A23: 2410-10 | B23: A | C23: Advogado de empresa
A24: 7213-05 | B24: A | C24: Afiador de cardas
A25: 7213-10 | B25: A | C25: Afiador de cutelaria
A26: 7213-15 | B26: A | C26: Afiador de ferramentas
A27: 7213-20 | B27: A | C27: Afiador de serras
A28: 7421-05 | B28: A | C28: Afinador de instrumentos musicais
A29: 3421-20 | B29: A | C29: Afretador
A30: 2531-40 | B30: A | C30: Agenciador de propaganda
A31: 5151-05 | B31: A | C31: Agente comunitário de saúde
A32: 5153-10 | B32: A | C32: Agente de ação social
A33: 5151-40 | B33: A | C33: Agente de combate às endemias
A34: 3522-05 | B34: A | C34: Agente de defesa ambiental
A35: 3524-05 | B35: A | C35: Agente de direitos autorais
A36: 3424-05 | B36: A | C36: Agente de estação (ferrovia e metrô)
A37: 2543-10 | B37: A | C37: Agente de higiene e segurança
A38: 3519-05 | B38: A | C38: Agente de inteligência
A39: 2151-05 | B39: A | C39: Agente de manobra e docagem
A40: 4110-50 | B40: A | C40: Agente de microcrédito
A41: 7831-05 | B41: A | C41: Agente de pátio
A42: 5172-05 | B42: A | C42: Agente de polícia federal
A43: 5173-05 | B43: A | C43: Agente de proteção de aeroporto
A44: 3425-50 | B44: A | C44: Agente de proteção de aviação civil
A45: 3513-15 | B45: A | C45: Agente de recrutamento e seleção
A46: 3522-10 | B46: A | C46: Agente de saúde pública
A47: 5173-10 | B47: A | C47: Agente de segurança
A48: 5173-15 | B48: A | C48: Agente de segurança penitenciária
A49: 5172-20 | B49: A | C49: Agente de trânsito
A50: 3541-20 | B50: A | C50: Agente de vendas de serviços
A51: 3548-15 | B51: A | C51: Agente de viagem
A52: 3523-10 | B52: A | C52: Agente fiscal de qualidade
A53: 3523-15 | B53: A | C53: Agente fiscal metrológico
A54: 3523-20 | B54: A | C54: Agente fiscal têxtil
A55: 5165-05 | B55: A | C55: Agente funerário
A56: 5151-30 | B56: A | C56: Agente indígena de saneamento
A57: 5151-25 | B57: A | C57: Agente indígena de saúde
A58: 3519-10 | B58: A | C58: Agente técnico de inteligência
A59: 6326-15 | B59: A | C59: Ajudante de carvoaria
A60: 7631-25 | B60: A | C60: Ajudante de confecção
A61: 3422-05 | B61: A | C61: Ajudante de despachante aduaneiro
A62: 7832-25 | B62: A | C62: Ajudante de motorista
A63: 7411-05 | B63: A | C63: Ajustador de instrumentos de precisão
A64: 7250-05 | B64: A | C64: Ajustador ferramenteiro
A65: 7250-10 | B65: A | C65: Ajustador mecânico
A66: 7250-15 | B66: A | C66: Ajustador mecânico (usinagem em bancada e em máquinas-ferramentas)
A67: 7250-20 | B67: =LEFT(C67,1) -> A | C67: Ajustador mecânico em bancada
A68: 7250-25 | B68: A | C68: Ajustador naval (reparo e construção)
A69: 8417-05 | B69: A | C69: Alambiqueiro
A70: 7630-05 | B70: A | C70: Alfaiate
A71: 7842-05 | B71: A | C71: Alimentador de linha de produção
A72: 9921-05 | B72: A | C72: Alinhador de pneus
A73: 4141-05 | B73: A | C73: Almoxarife
A74: 7614-05 | B74: A | C74: Alvejador (tecidos)
A75: 7832-40 | B75: A | C75: Amarrador e desamarrado de embarcações
A76: 7111-05 | B76: A | C76: Amostrador de minérios
A77: 2525-10 | B77: A | C77: Analista de câmbio
A78: 2525-15 | B78: A | C78: Analista de cobrança (instituições financeiras)
A79: 2525-25 | B79: A | C79: Analista de crédito (instituições financeiras)
A80: 2525-30 | B80: A | C80: Analista de crédito rural
A81: 3422-15 | B81: A | C81: Analista de desembaraço aduaneiro
A82: 2124-05 | B82: A | C82: Analista de desenvolvimento de sistemas
A83: 3543-05 | B83: A | C83: Analista de exportação e importação
A84: 4131-05 | B84: A | C84: Analista de folha de pagamento
A85: 2527-25 | B85: A | C85: Analista de gestão de estoque
A86: 2612-15 | B86: A | C86: Analista de informações (pesquisador de informações de rede)
A87: 2525-35 | B87: A | C87: Analista de leasing
A88: 2527-15 | B88: A | C88: Analista de logistica
A89: 1423-30 | B89: A | C89: Analista de negócios
A90: 2527-05 | B90: A | C90: Analista de pcp (programação e controle da produção)
A91: 1423-35 | B91: A | C91: Analista de pesquisa de mercado
A92: 2527-10 | B92: A | C92: Analista de planejamento de materias
A93: 1115-10 | B93: A | C93: Analista de planejamento e orçamento - apo
A94: 2525-40 | B94: A | C94: Analista de produtos bancários
A95: 2527-20 | B95: A | C95: Analista de projetos logisticos
A96: 2524-05 | B96: A | C96: Analista de recursos humanos
A97: 2124-10 | B97: A | C97: Analista de redes e de comunicação de dados
A98: 3517-05 | B98: A | C98: Analista de seguros (técnico)
A99: 3517-10 | B99: A | C99: Analista de sinistros
A100: 2124-15 | B100: A | C100: Analista de sistemas de automação
A101: 2124-20 | B101: A | C101: Analista de suporte computacional
A102: 3421-05 | B102: A | C102: Analista de transporte em comércio exterior
A103: 2525-45 | B103: A | C103: Analista financeiro (instituições financeiras)
A104: 3741-55 | B104: A | C104: Analista musical
A105: 2617-05 | B105: Â | C105: Âncora de mídias audiovisuais
A106: 2511-05 | B106: A | C106: Antropólogo
A107: 6134-05 | B107: A | C107: Apicultor
A108: 7157-05 | B108: A | C108: Aplicador de asfalto impermeabilizante (coberturas)
A109: 4242-10 | B109: A | C109: Aplicador de provas (concurso, avaliação,exame)
A110: 7522-05 | B110: A | C110: Aplicador serigráfico em vidros
A111: 4142-05 | B111: A | C111: Apontador de mão-de-obra
A112: 4142-10 | B112: A | C112: Apontador de produção
A113: 3763-25 | B113: A | C113: Apresentador de circo
A114: 3763-05 | B114: A | C114: Apresentador de eventos
A115: 3763-10 | B115: A | C115: Apresentador de festas populares
A116: 3763-15 | B116: A | C116: Apresentador de programas de rádio
A117: 3763-20 | B117: A | C117: Apresentador de programas de televisão
A118: 3772-10 | B118: Á | C118: Árbitro de atletismo
A119: 3772-15 | B119: Á | C119: Árbitro de basquete
A120: 3772-20 | B120: Á | C120: Árbitro de futebol
A121: 3772-25 | B121: Á | C121: Árbitro de futebol de salão
A122: 3772-30 | B122: Á | C122: Árbitro de judô
A123: 3772-35 | B123: Á | C123: Árbitro de karatê
A124: 3772-40 | B124: Á | C124: Árbitro de poló aquático
A125: 3772-45 | B125: Á | C125: Árbitro de vôlei
A126: 3772-05 | B126: Á | C126: Árbitro desportivo
A127: 7153-05 | B127: A | C127: Armador de estrutura de concreto
A128: 7153-15 | B128: A | C128: Armador de estrutura de concreto armado
A129: 4141-10 | B129: A | C129: Armazenista
A130: 3250-10 | B130: A | C130: Aromista
A131: 2511-10 | B131: =LEFT(C131,1) -> A | C131: Arqueólogo
A132: 2141-05 | B132: A | C132: Arquiteto de edificações
A133: 2141-10 | B133: A | C133: Arquiteto de interiores
A134: 2141-15 | B134: A | C134: Arquiteto de patrimônio
A135: 2141-20 | B135: A | C135: Arquiteto paisagista
A136: 2141-25 | B136: A | C136: Arquiteto urbanista
A137: 2613-05 | B137: A | C137: Arquivista
A138: 4151-05 | B138: A | C138: Arquivista de documentos
A139: 2611-05 | B139: A | C139: Arquivista pesquisador (jornalismo)
A140: 7633-05 | B140: A | C140: Arrematadeira
A141: 7911-05 | B141: A | C141: Artesão bordador
A142: 7911-10 | B142: A | C142: Artesão ceramista
A143: 7911-15 | B143: A | C143: Artesão com material reciclável
A144: 7911-20 | B144: A | C144: Artesão confeccionador de biojóias e ecojóias
A145: 7911-50 | B145: A | C145: Artesão crocheteiro
A146: 7911-25 | B146: A | C146: Artesão do couro
A147: 7911-30 | B147: A | C147: Artesão escultor
A148: 7521-05 | B148: A | C148: Artesão modelador (vidros)
A149: 7911-35 | B149: A | C149: Artesão moveleiro (exceto reciclado)
A150: 7911-60 | B150: A | C150: Artesão rendeiro
A151: 7911-40 | B151: A | C151: Artesão tecelão
A152: 7911-45 | B152: A | C152: Artesão trançador
A153: 7911-55 | B153: A | C153: Artesão tricoteiro
A154: 2263-10 | B154: A | C154: Arteterapeuta
A155: 7683-05 | B155: A | C155: Artífice do couro
A156: 2624-05 | B156: A | C156: Artista (artes visuais)
A157: 3762-10 | B157: A | C157: Artista aéreo
A158: 3762-15 | B158: A | C158: Artista de circo (outros)
A159: 5141-05 | B159: A | C159: Ascensorista
A160: 7241-05 | B160: A | C160: Assentador de canalização (edificações)
A161: 7165-10 | B161: A | C161: Assentador de revestimentos cerâmicos
A162: 2611-10 | B162: A | C162: Assessor de imprensa
A163: 4110-10 | B163: A | C163: Assistente administrativo
A164: 3517-15 | B164: A | C164: Assistente comercial de seguros
A165: 2628-05 | B165: A | C165: Assistente de coreografia
A166: 2619-10 | B166: A | C166: Assistente de direção (tv)
A167: 8181-05 | B167: A | C167: Assistente de laboratório industrial
A168: 3731-45 | B168: A | C168: Assistente de operações audiovisuais
A169: 3541-25 | B169: A | C169: Assistente de vendas
A170: 2516-05 | B170: A | C170: Assistente social
A171: 3517-20 | B171: A | C171: Assistente técnico de seguros
A172: 7165-05 | B172: A | C172: Assoalhador
A173: 5167-05 | B173: A | C173: Astrólogo
A174: 2133-05 | B174: A | C174: Astrônomo
A175: 4211-05 | B175: A | C175: Atendente comercial (agência postal)
A176: 4132-05 | B176: A | C176: Atendente de agência
A177: 5151-10 | B177: A | C177: Atendente de enfermagem
A178: 5211-30 | B178: A | C178: Atendente de farmácia - balconista
A179: 4110-15 | B179: A | C179: Atendente de judiciário
A180: 5134-35 | B180: A | C180: Atendente de lanchonete
A181: 5163-40 | B181: A | C181: Atendente de lavanderia
A182: 5211-40 | B182: A | C182: Atendente de lojas e mercados
A183: 3771-05 | B183: A | C183: Atleta profissional (outras modalidades)
A184: 3771-10 | B184: A | C184: Atleta profissional de futebol
A185: 3771-15 | B185: A | C185: Atleta profissional de golfe
A186: 3771-20 | B186: A | C186: Atleta profissional de luta
A187: 3771-25 | B187: A | C187: Atleta profissional de tênis
A188: 2625-05 | B188: A | C188: Ator
A189: 2111-05 | B189: A | C189: Atuário
A190: 2614-30 | B190: A | C190: Audiodescritor
A191: 2522-05 | B191: A | C191: Auditor (contadores e afins)
A192: 2542-05 | B192: A | C192: Auditor-fiscal da previdência social
A193: 2541-05 | B193: A | C193: Auditor-fiscal da receita federal
A194: 2543-05 | B194: A | C194: Auditor-fiscal do trabalho
A195: 2615-05 | B195: =LEFT(C195,1) -> A | C195: Autor-roteirista
A196: 5152-05 | B196: A | C196: Auxiliar de banco de sangue
A197: 3711-05 | B197: A | C197: Auxiliar de biblioteca
A198: 4110-25 | B198: A | C198: Auxiliar de cartório
A199: 4131-10 | B199: A | C199: Auxiliar de contabilidade
A200: 7631-05 | B200: A | C200: Auxiliar de corte (preparação da confecção de roupas)
... 2427 more rows
